[Event "*** Titled Tuesday Blitz"]
[Site "Chess.com"]
[Date "2019.05.07"]
[Round "2"]
[White "AlexandraBotez"]
[Black "aa175"]
[Result "0-1"]
[WhiteElo "1986"]
[BlackElo "1971"]
[TimeControl "180+2"]
[EndTime "13:29:21 PDT"]
[Termination "aa175 won on time"]

1. d4 {[%clk 0:03:01.9]} 1... Nf6 {[%clk 0:03:00.8]} 2. c4 {[%clk 0:03:00.9]}
2... g6 {[%clk 0:02:59.6]} 3. Nc3 {[%clk 0:03:01.9]} 3... c6 {[%clk 0:03:00.8]}
4. e4 {[%clk 0:03:02.9]} 4... d5 {[%clk 0:03:02.3]} 5. cxd5 {[%clk 0:03:03.8]}
5... cxd5 {[%clk 0:03:04.2]} 6. e5 {[%clk 0:03:05]} 6... Ne4 {[%clk 0:03:03.9]}
7. Nxe4 {[%clk 0:03:05.8]} 7... dxe4 {[%clk 0:03:05.8]} 8. Bc4 {[%clk
0:03:03.8]} 8... Nc6 {[%clk 0:03:04.7]} 9. Ne2 {[%clk 0:03:03.8]} 9... Bg7
{[%clk 0:02:56.2]} 10. O-O {[%clk 0:03:02.8]} 10... e6 {[%clk 0:02:51.8]} 11.
Be3 {[%clk 0:02:56.2]} 11... O-O {[%clk 0:02:39.9]} 12. a3 {[%clk 0:02:48.3]}
12... Bd7 {[%clk 0:02:29.6]} 13. b4 {[%clk 0:02:48.5]} 13... Rc8 {[%clk
0:02:25.3]} 14. Rc1 {[%clk 0:02:40.5]} 14... Ne7 {[%clk 0:02:20.4]} 15. Qd2
{[%clk 0:02:28]} 15... Nd5 {[%clk 0:02:14.3]} 16. Ng3 {[%clk 0:02:06]} 16...
Rxc4 {[%clk 0:01:53.1]} 17. Rxc4 {[%clk 0:02:00.6]} 17... Bb5 {[%clk 0:01:52.7]}
18. Rfc1 {[%clk 0:01:59.5]} 18... Bxc4 {[%clk 0:01:53]} 19. Rxc4 {[%clk
0:01:56.2]} 19... b5 {[%clk 0:01:50.8]} 20. Rc2 {[%clk 0:01:48.7]} 20... Nb6
{[%clk 0:01:45]} 21. Rc3 {[%clk 0:01:41.2]} 21... Nc4 {[%clk 0:01:43.9]} 22. Qc2
{[%clk 0:01:39.9]} 22... a5 {[%clk 0:00:46]} 23. h3 {[%clk 0:01:31.3]} 23...
axb4 {[%clk 0:00:44.3]} 24. axb4 {[%clk 0:01:27.5]} 24... Qa8 {[%clk 0:00:46.2]}
25. Kh2 {[%clk 0:01:25.1]} 25... Rd8 {[%clk 0:00:22.1]} 26. Nxe4 {[%clk
0:01:20.1]} 26... Bf8 {[%clk 0:00:16.8]} 27. Nc5 {[%clk 0:01:13.8]} 27... Bxc5
{[%clk 0:00:13.6]} 28. bxc5 {[%clk 0:01:10.5]} 28... Qd5 {[%clk 0:00:10.8]} 29.
Qe2 {[%clk 0:01:03.6]} 29... Nxe5 {[%clk 0:00:07.4]} 30. Bg5 {[%clk 0:00:53.9]}
30... Nf3+ {[%clk 0:00:04.4]} 31. Qxf3 {[%clk 0:00:50.8]} 31... Qxg5 {[%clk
0:00:06.3]} 32. c6 {[%clk 0:00:51.7]} 32... Qe7 {[%clk 0:00:05.2]} 33. c7 {[%clk
0:00:52.5]} 33... Qd6+ {[%clk 0:00:05.7]} 34. Qg3 {[%clk 0:00:53]} 34... Qxg3+
{[%clk 0:00:04.3]} 35. Kxg3 {[%clk 0:00:51.6]} 35... Rc8 {[%clk 0:00:06.2]} 36.
Kf4 {[%clk 0:00:49.1]} 36... f6 {[%clk 0:00:05.7]} 37. Ke4 {[%clk 0:00:47]}
37... Kf7 {[%clk 0:00:06.8]} 38. d5 {[%clk 0:00:48]} 38... Ke7 {[%clk
0:00:06.5]} 39. Kd4 {[%clk 0:00:42.7]} 39... e5+ {[%clk 0:00:03.6]} 40. Kd3
{[%clk 0:00:35.4]} 40... Kd7 {[%clk 0:00:03.7]} 41. Rb3 {[%clk 0:00:35.4]} 41...
Rxc7 {[%clk 0:00:04]} 42. Rxb5 {[%clk 0:00:36.6]} 42... Ra7 {[%clk 0:00:04.6]}
43. Rb3 {[%clk 0:00:36.8]} 43... Ra1 {[%clk 0:00:05.3]} 44. Rb7+ {[%clk
0:00:34.5]} 44... Kd6 {[%clk 0:00:06.2]} 45. Rxh7 {[%clk 0:00:35.7]} 45... Kxd5
{[%clk 0:00:07]} 46. Ke3 {[%clk 0:00:37.1]} 46... Ra3+ {[%clk 0:00:06.5]} 47.
Ke2 {[%clk 0:00:38.1]} 47... Ke4 {[%clk 0:00:07.8]} 48. Rh4+ {[%clk 0:00:37.9]}
48... Kf5 {[%clk 0:00:08.5]} 49. g3 {[%clk 0:00:33.1]} 49... g5 {[%clk
0:00:07.1]} 50. Rb4 {[%clk 0:00:33.1]} 50... Ra2+ {[%clk 0:00:08.2]} 51. Kf3
{[%clk 0:00:34.1]} 51... Ra3+ {[%clk 0:00:07.5]} 52. Kg2 {[%clk 0:00:34.9]}
52... Ra2 {[%clk 0:00:08]} 53. g4+ {[%clk 0:00:35.8]} 53... Kg6 {[%clk
0:00:08.9]} 54. Rb6 {[%clk 0:00:35.6]} 54... Ra3 {[%clk 0:00:08.7]} 55. Rb8
{[%clk 0:00:34.1]} 55... Rc3 {[%clk 0:00:09.4]} 56. Rg8+ {[%clk 0:00:34.7]}
56... Kf7 {[%clk 0:00:10.2]} 57. Rd8 {[%clk 0:00:34.8]} 57... Rc7 {[%clk
0:00:11]} 58. f3 {[%clk 0:00:35.7]} 58... Rc2+ {[%clk 0:00:11.7]} 59. Kg3 {[%clk
0:00:37.1]} 59... Rc1 {[%clk 0:00:12.8]} 60. Rh8 {[%clk 0:00:35.3]} 60... Rc3
{[%clk 0:00:13.6]} 61. h4 {[%clk 0:00:35.7]} 61... e4 {[%clk 0:00:06.2]} 62. h5
{[%clk 0:00:32.2]} 62... Rxf3+ {[%clk 0:00:05]} 63. Kg2 {[%clk 0:00:32.7]} 63...
Rf4 {[%clk 0:00:05.8]} 64. Kg3 {[%clk 0:00:33.4]} 64... Rf3+ {[%clk 0:00:04.8]}
65. Kh2 {[%clk 0:00:32.7]} 65... Ra3 {[%clk 0:00:06.7]} 66. Rc8 {[%clk 0:00:30]}
66... e3 {[%clk 0:00:06.2]} 67. Kg2 {[%clk 0:00:29.9]} 67... e2 {[%clk
0:00:03.8]} 68. Kf2 {[%clk 0:00:30]} 68... Re3 {[%clk 0:00:04.5]} 69. Rc7+
{[%clk 0:00:26.7]} 69... Kg8 {[%clk 0:00:05.2]} 70. Rc1 {[%clk 0:00:18.9]} 70...
Re4 {[%clk 0:00:04.6]} 71. Rg1 {[%clk 0:00:17.8]} 71... Kh7 {[%clk 0:00:03.3]}
72. Re1 {[%clk 0:00:10.6]} 72... Rxg4 {[%clk 0:00:02.5]} 73. Rxe2 {[%clk
0:00:11.2]} 73... Rh4 {[%clk 0:00:03.9]} 74. Re6 {[%clk 0:00:11.4]} 74... Kg7
{[%clk 0:00:04.1]} 75. Re7+ {[%clk 0:00:11.8]} 75... Kh6 {[%clk 0:00:04.2]} 76.
Rf7 {[%clk 0:00:11.5]} 76... Rf4+ {[%clk 0:00:05.3]} 77. Kg3 {[%clk 0:00:10.4]}
77... Kxh5 {[%clk 0:00:07.2]} 78. Rg7 {[%clk 0:00:10.3]} 78... Kh6 {[%clk
0:00:07.4]} 79. Rg8 {[%clk 0:00:11.2]} 79... Kh7 {[%clk 0:00:08]} 80. Rf8 {[%clk
0:00:11.5]} 80... Kg6 {[%clk 0:00:09.9]} 81. Rg8+ {[%clk 0:00:12.2]} 81... Kf5
{[%clk 0:00:10.5]} 82. Ra8 {[%clk 0:00:10.7]} 82... Rg4+ {[%clk 0:00:11.1]} 83.
Kf3 {[%clk 0:00:11.6]} 83... Rf4+ {[%clk 0:00:12.7]} 84. Kg3 {[%clk 0:00:12.3]}
84... Rb4 {[%clk 0:00:14.6]} 85. Ra5+ {[%clk 0:00:12.7]} 85... Kg6 {[%clk
0:00:15.9]} 86. Ra6 {[%clk 0:00:13.7]} 86... Rb8 {[%clk 0:00:10.7]} 87. Rd6
{[%clk 0:00:13]} 87... Rf8 {[%clk 0:00:11.7]} 88. Kg4 {[%clk 0:00:12.7]} 88...
Rh8 {[%clk 0:00:11.3]} 89. Kg3 {[%clk 0:00:13.1]} 89... Rh1 {[%clk 0:00:11.7]}
90. Kg2 {[%clk 0:00:13.8]} 90... Rh4 {[%clk 0:00:11.4]} 91. Kg3 {[%clk
0:00:15.2]} 91... Rf4 {[%clk 0:00:12.7]} 92. Rc6 {[%clk 0:00:15.4]} 92... Kh5
{[%clk 0:00:11]} 93. Rc8 {[%clk 0:00:15.1]} 93... f5 {[%clk 0:00:09.9]} 94. Rh8+
{[%clk 0:00:16]} 94... Kg6 {[%clk 0:00:11]} 95. Rg8+ {[%clk 0:00:17.1]} 95...
Kf6 {[%clk 0:00:12.3]} 96. Rf8+ {[%clk 0:00:18.3]} 96... Kg7 {[%clk 0:00:13.3]}
97. Ra8 {[%clk 0:00:19.1]} 97... Rb4 {[%clk 0:00:13.8]} 98. Ra5 {[%clk
0:00:19.4]} 98... Rb3+ {[%clk 0:00:10.4]} 99. Kf2 {[%clk 0:00:19.1]} 99... Kg6
{[%clk 0:00:11.2]} 100. Ra6+ {[%clk 0:00:20.1]} 100... Kh5 {[%clk 0:00:12.3]}
101. Ra5 {[%clk 0:00:17.8]} 101... Kg4 {[%clk 0:00:12.9]} 102. Ra4+ {[%clk
0:00:17.6]} 102... f4 {[%clk 0:00:13.5]} 103. Ra5 {[%clk 0:00:15.5]} 103... Rb2+
{[%clk 0:00:13.9]} 104. Kf1 {[%clk 0:00:16]} 104... Kg3 {[%clk 0:00:07.8]} 105.
Rxg5+ {[%clk 0:00:15.2]} 105... Kf3 {[%clk 0:00:08.9]} 106. Ke1 {[%clk
0:00:07.9]} 106... Rb1+ {[%clk 0:00:07.2]} 107. Kd2 {[%clk 0:00:08.5]} 107...
Kf2 {[%clk 0:00:09.1]} 108. Rg4 {[%clk 0:00:04.8]} 108... f3 {[%clk 0:00:09.4]}
109. Rg5 {[%clk 0:00:03.5]} 109... Rb4 {[%clk 0:00:04.9]} 110. Rg4 {[%clk
0:00:03.3]} 110... Rxg4 {[%clk 0:00:05.7]} 0-1

[Event "*** Titled Tuesday Blitz"]
[Site "Chess.com"]
[Date "2019.05.07"]
[Round "3"]
[White "RATNAKARAN"]
[Black "novocane"]
[Result "1-0"]
[WhiteElo "2419"]
[BlackElo "2235"]
[TimeControl "180+2"]
[EndTime "13:32:36 PDT"]
[Termination "RATNAKARAN won by resignation"]

1. e4 {[%clk 0:03:01.9]} 1... c5 {[%clk 0:03:00.9]} 2. Nf3 {[%clk 0:03:03]} 2...
Nc6 {[%clk 0:03:02.6]} 3. Bb5 {[%clk 0:03:03.3]} 3... Nf6 {[%clk 0:03:04.1]} 4.
e5 {[%clk 0:03:03.5]} 4... Nd5 {[%clk 0:03:05.9]} 5. Nc3 {[%clk 0:03:04.8]} 5...
Nc7 {[%clk 0:03:06.6]} 6. Bxc6 {[%clk 0:03:05.7]} 6... dxc6 {[%clk 0:03:08.5]}
7. Ne4 {[%clk 0:03:06.4]} 7... b6 {[%clk 0:03:09.4]} 8. O-O {[%clk 0:03:07]}
8... Bg4 {[%clk 0:03:10.2]} 9. Re1 {[%clk 0:03:07.7]} 9... e6 {[%clk 0:03:10.8]}
10. h3 {[%clk 0:03:08.1]} 10... Bxf3 {[%clk 0:03:12.1]} 11. Qxf3 {[%clk
0:03:08.9]} 11... Be7 {[%clk 0:03:13.2]} 12. Nd6+ {[%clk 0:03:08.3]} 12... Bxd6
{[%clk 0:03:02.8]} 13. Qxc6+ {[%clk 0:03:09.2]} 13... Kf8 {[%clk 0:03:04]} 14.
exd6 {[%clk 0:03:09.4]} 14... Nd5 {[%clk 0:03:01.7]} 15. d4 {[%clk 0:03:05.3]}
15... cxd4 {[%clk 0:02:46.9]} 16. Bg5 {[%clk 0:02:52.6]} 16... Qc8 {[%clk
0:02:47.9]} 17. Qxc8+ {[%clk 0:02:51.7]} 1-0

[Event "*** Titled Tuesday Blitz"]
[Site "Chess.com"]
[Date "2019.05.07"]
[Round "3"]
[White "PlotnikovPavel"]
[Black "j_coca"]
[Result "1-0"]
[WhiteElo "2355"]
[BlackElo "2141"]
[TimeControl "180+2"]
[EndTime "13:33:53 PDT"]
[Termination "PlotnikovPavel won by resignation"]

1. e4 {[%clk 0:03:01.9]} 1... Nf6 {[%clk 0:03:00.2]} 2. e5 {[%clk 0:03:01.9]}
2... Nd5 {[%clk 0:02:59.3]} 3. d4 {[%clk 0:03:03.3]} 3... d6 {[%clk 0:03:00.1]}
4. Nf3 {[%clk 0:03:04.6]} 4... Bg4 {[%clk 0:03:00.2]} 5. Be2 {[%clk 0:03:05]}
5... dxe5 {[%clk 0:02:59.8]} 6. Nxe5 {[%clk 0:03:05.3]} 6... Bxe2 {[%clk
0:03:00.2]} 7. Qxe2 {[%clk 0:03:07.2]} 7... Nd7 {[%clk 0:02:59.7]} 8. O-O {[%clk
0:03:06]} 8... e6 {[%clk 0:02:59.5]} 9. c4 {[%clk 0:03:04.6]} 9... N5f6 {[%clk
0:02:59.8]} 10. Nc3 {[%clk 0:03:02.4]} 10... Be7 {[%clk 0:02:59.6]} 11. Bf4
{[%clk 0:02:58.9]} 11... O-O {[%clk 0:02:59.8]} 12. Rfe1 {[%clk 0:02:58.8]}
12... a6 {[%clk 0:03:00.8]} 13. Rad1 {[%clk 0:02:58.9]} 13... c6 {[%clk
0:02:57.8]} 14. d5 {[%clk 0:02:57.5]} 14... cxd5 {[%clk 0:02:57]} 15. cxd5
{[%clk 0:02:57]} 15... exd5 {[%clk 0:02:55.2]} 16. Nxd5 {[%clk 0:02:50.9]} 16...
Nxe5 {[%clk 0:02:38.9]} 17. Nxf6+ {[%clk 0:02:47.8]} 17... Bxf6 {[%clk
0:02:39.1]} 18. Rxd8 {[%clk 0:02:48.4]} 18... Raxd8 {[%clk 0:02:40]} 19. Bxe5
{[%clk 0:02:48.9]} 19... Rfe8 {[%clk 0:02:41.3]} 20. f4 {[%clk 0:02:48.2]} 20...
Be7 {[%clk 0:02:35.7]} 21. Qg4 {[%clk 0:02:17]} 21... f6 {[%clk 0:02:31.9]} 22.
Bc3 {[%clk 0:02:13.1]} 22... b5 {[%clk 0:02:25.6]} 23. a3 {[%clk 0:02:12.7]} 1-0

[Event "*** Titled Tuesday Blitz"]
[Site "Chess.com"]
[Date "2019.05.07"]
[Round "3"]
[White "dopolian"]
[Black "Komissarov_alex"]
[Result "1-0"]
[WhiteElo "2240"]
[BlackElo "2115"]
[TimeControl "180+2"]
[EndTime "13:33:54 PDT"]
[Termination "dopolian won by resignation"]

1. d4 {[%clk 0:03:01.9]} 1... Nf6 {[%clk 0:02:55.4]} 2. Nf3 {[%clk 0:03:01.9]}
2... d5 {[%clk 0:02:53.9]} 3. c4 {[%clk 0:02:59.2]} 3... e6 {[%clk 0:02:52.1]}
4. Nc3 {[%clk 0:02:58.7]} 4... Bb4 {[%clk 0:02:50.7]} 5. cxd5 {[%clk 0:02:53.8]}
5... exd5 {[%clk 0:02:37]} 6. Qa4+ {[%clk 0:02:49.3]} 6... Nc6 {[%clk 0:02:36]}
7. Bg5 {[%clk 0:02:43.1]} 7... h6 {[%clk 0:02:34.1]} 8. Bh4 {[%clk 0:02:43.6]}
8... g5 {[%clk 0:02:30.5]} 9. Bg3 {[%clk 0:02:44.1]} 9... Bd7 {[%clk 0:02:27.7]}
10. Qc2 {[%clk 0:02:44.1]} 10... g4 {[%clk 0:02:18.7]} 11. Ne5 {[%clk
0:02:36.9]} 11... Nxd4 {[%clk 0:02:16.9]} 12. Qd3 {[%clk 0:02:37.2]} 12... Nf5
{[%clk 0:01:59.7]} 13. Nxd7 {[%clk 0:02:23.2]} 13... Qxd7 {[%clk 0:01:58.3]} 14.
Be5 {[%clk 0:02:22.8]} 14... Qb5 {[%clk 0:01:46.5]} 15. Qxb5+ {[%clk 0:02:22.5]}
1-0

[Event "*** Titled Tuesday Blitz"]
[Site "Chess.com"]
[Date "2019.05.07"]
[Round "3"]
[White "BasilSmash"]
[Black "Yaacovn"]
[Result "0-1"]
[WhiteElo "2491"]
[BlackElo "2800"]
[TimeControl "180+2"]
[EndTime "13:34:19 PDT"]
[Termination "Yaacovn won by checkmate"]

1. e4 {[%clk 0:03:01.9]} 1... c6 {[%clk 0:03:01.2]} 2. d4 {[%clk 0:03:02.3]}
2... d5 {[%clk 0:03:03.1]} 3. exd5 {[%clk 0:03:03.9]} 3... cxd5 {[%clk
0:03:04.9]} 4. Bd3 {[%clk 0:03:05.1]} 4... Nf6 {[%clk 0:03:06.8]} 5. c3 {[%clk
0:03:04.9]} 5... Nc6 {[%clk 0:03:08.7]} 6. Bf4 {[%clk 0:03:05.4]} 6... Bg4
{[%clk 0:03:09.5]} 7. Qb3 {[%clk 0:03:06]} 7... Qd7 {[%clk 0:03:10.8]} 8. Nd2
{[%clk 0:03:06.4]} 8... e6 {[%clk 0:03:12.2]} 9. Ngf3 {[%clk 0:03:07.6]} 9...
Bd6 {[%clk 0:03:13.6]} 10. Bxd6 {[%clk 0:03:08]} 10... Qxd6 {[%clk 0:03:15.5]}
11. O-O {[%clk 0:03:09]} 11... O-O {[%clk 0:03:16.7]} 12. Rfe1 {[%clk
0:03:08.6]} 12... Rab8 {[%clk 0:03:18.1]} 13. a4 {[%clk 0:03:07.9]} 13... Qc7
{[%clk 0:03:18.6]} 14. Ne5 {[%clk 0:02:28.4]} 14... Bf5 {[%clk 0:03:19.2]} 15.
Bxf5 {[%clk 0:02:28.5]} 15... exf5 {[%clk 0:03:21.1]} 16. Nd3 {[%clk 0:02:27.5]}
16... Na5 {[%clk 0:03:18.7]} 17. Qb4 {[%clk 0:02:26]} 17... Rfe8 {[%clk
0:03:17.9]} 18. f3 {[%clk 0:02:24.7]} 18... g6 {[%clk 0:03:18.4]} 19. Re5 {[%clk
0:02:16.2]} 19... Nc6 {[%clk 0:03:16.4]} 20. Rxe8+ {[%clk 0:02:16]} 20... Rxe8
{[%clk 0:03:18.3]} 21. Qa3 {[%clk 0:02:03.7]} 21... Re3 {[%clk 0:03:19]} 22. Nf2
{[%clk 0:01:57]} 22... Nxd4 {[%clk 0:03:19.6]} 23. Nf1 {[%clk 0:01:48.6]} 23...
Nc2 {[%clk 0:03:16.2]} 24. Qa2 {[%clk 0:01:40.2]} 24... Re2 {[%clk 0:03:15.4]}
25. Ng3 {[%clk 0:01:29.8]} 25... Rxf2 {[%clk 0:03:14]} 26. Kxf2 {[%clk
0:01:30.9]} 26... Qb6+ {[%clk 0:03:14.5]} 27. Kf1 {[%clk 0:01:28.5]} 27... Ne3+
{[%clk 0:03:15.5]} 28. Kg1 {[%clk 0:01:21.8]} 28... Neg4+ {[%clk 0:03:15.1]} 29.
Kh1 {[%clk 0:01:18.3]} 29... Nf2+ {[%clk 0:03:16.2]} 30. Kg1 {[%clk 0:01:19.2]}
30... Nh3+ {[%clk 0:03:17.5]} 31. Kh1 {[%clk 0:01:20.3]} 31... Qg1+ {[%clk
0:03:18.6]} 32. Rxg1 {[%clk 0:01:21.3]} 32... Nf2# {[%clk 0:03:20.5]} 0-1

[Event "*** Titled Tuesday Blitz"]
[Site "Chess.com"]
[Date "2019.05.07"]
[Round "3"]
[White "annamaja"]
[Black "VFernandezB"]
[Result "1-0"]
[WhiteElo "2167"]
[BlackElo "2328"]
[TimeControl "180+2"]
[EndTime "13:34:38 PDT"]
[Termination "annamaja won by checkmate"]

1. e4 {[%clk 0:03:01.9]} 1... c5 {[%clk 0:03:00.1]} 2. Nf3 {[%clk 0:03:02.5]}
2... d6 {[%clk 0:03:01.2]} 3. d4 {[%clk 0:03:03.9]} 3... cxd4 {[%clk 0:03:03.1]}
4. Nxd4 {[%clk 0:03:05.3]} 4... Nf6 {[%clk 0:03:04.8]} 5. Nc3 {[%clk 0:03:06.2]}
5... a6 {[%clk 0:03:06.5]} 6. g3 {[%clk 0:03:05.2]} 6... g6 {[%clk 0:03:07]} 7.
Bg2 {[%clk 0:03:05.2]} 7... Bg7 {[%clk 0:03:08.6]} 8. O-O {[%clk 0:03:06.6]}
8... O-O {[%clk 0:03:10.3]} 9. h3 {[%clk 0:03:02.8]} 9... Nc6 {[%clk 0:03:11.3]}
10. Be3 {[%clk 0:03:03.6]} 10... Nxd4 {[%clk 0:02:59.9]} 11. Bxd4 {[%clk
0:03:03.8]} 11... Bd7 {[%clk 0:03:01.5]} 12. e5 {[%clk 0:02:54.7]} 12... dxe5
{[%clk 0:03:01.7]} 13. Bxe5 {[%clk 0:02:56.6]} 13... Qc8 {[%clk 0:02:48.3]} 14.
Qd4 {[%clk 0:02:51.3]} 14... Bxh3 {[%clk 0:02:45.6]} 15. Nd5 {[%clk 0:02:39.7]}
15... Nxd5 {[%clk 0:01:47.3]} 16. Bxg7 {[%clk 0:02:37.6]} 16... Rd8 {[%clk
0:01:48.2]} 17. Bxd5 {[%clk 0:02:35.3]} 17... Bxf1 {[%clk 0:01:37.8]} 18. Bh6
{[%clk 0:02:16.9]} 18... e5 {[%clk 0:01:18]} 19. Qxe5 {[%clk 0:02:16.7]} 19...
Rxd5 {[%clk 0:01:17.2]} 20. Qg7# {[%clk 0:02:17.3]} 1-0

[Event "*** Titled Tuesday Blitz"]
[Site "Chess.com"]
[Date "2019.05.07"]
[Round "3"]
[White "Aryangholami"]
[Black "TastyFrenchFries"]
[Result "1-0"]
[WhiteElo "2662"]
[BlackElo "2434"]
[TimeControl "180+2"]
[EndTime "13:34:56 PDT"]
[Termination "Aryangholami won by resignation"]

1. Nf3 {[%clk 0:03:01.9]} 1... b6 {[%clk 0:02:38.5]} 2. g3 {[%clk 0:03:01.9]}
2... Bb7 {[%clk 0:02:39.9]} 3. Bg2 {[%clk 0:03:03.8]} 3... e6 {[%clk 0:02:41.3]}
4. O-O {[%clk 0:03:04.9]} 4... Nf6 {[%clk 0:02:42.8]} 5. c4 {[%clk 0:03:05.7]}
5... Be7 {[%clk 0:02:44.1]} 6. d3 {[%clk 0:03:06.3]} 6... O-O {[%clk 0:02:43.9]}
7. e4 {[%clk 0:03:06.8]} 7... h6 {[%clk 0:02:44.9]} 8. Nc3 {[%clk 0:03:07.2]}
8... c5 {[%clk 0:02:46.2]} 9. Re1 {[%clk 0:03:07.1]} 9... Nc6 {[%clk 0:02:46.9]}
10. d4 {[%clk 0:03:08.1]} 10... cxd4 {[%clk 0:02:47.6]} 11. Nxd4 {[%clk
0:03:10]} 11... Nxd4 {[%clk 0:02:42.9]} 12. Qxd4 {[%clk 0:03:10.5]} 12... Qc8
{[%clk 0:02:41.7]} 13. Bf4 {[%clk 0:03:08.7]} 13... Bc5 {[%clk 0:02:38.4]} 14.
Qd2 {[%clk 0:03:08.5]} 14... Rd8 {[%clk 0:02:37.4]} 15. a3 {[%clk 0:03:02.4]}
15... Ne8 {[%clk 0:02:27.6]} 16. Rac1 {[%clk 0:03:01.2]} 16... Be7 {[%clk
0:02:19.8]} 17. Nd5 {[%clk 0:02:54.4]} 17... exd5 {[%clk 0:02:16.5]} 18. cxd5
{[%clk 0:02:55]} 18... Bc5 {[%clk 0:02:16.7]} 19. b4 {[%clk 0:02:55.3]} 19... d6
{[%clk 0:02:17.9]} 20. bxc5 {[%clk 0:02:56]} 20... bxc5 {[%clk 0:02:19.8]} 21.
e5 {[%clk 0:02:53.9]} 21... dxe5 {[%clk 0:02:20.6]} 22. Rxe5 {[%clk 0:02:53.1]}
22... c4 {[%clk 0:02:14.2]} 23. Qb4 {[%clk 0:02:35.5]} 23... Ba6 {[%clk
0:02:13.4]} 24. Re7 {[%clk 0:02:34]} 24... Rd7 {[%clk 0:02:01.8]} 25. Bh3 {[%clk
0:02:33.6]} 25... Nf6 {[%clk 0:01:43.8]} 26. Rxd7 {[%clk 0:02:29.3]} 26... Nxd7
{[%clk 0:01:45.7]} 27. Qa4 {[%clk 0:02:29.9]} 1-0

[Event "*** Titled Tuesday Blitz"]
[Site "Chess.com"]
[Date "2019.05.07"]
[Round "3"]
[White "Msb2"]
[Black "SoltaniciR"]
[Result "1-0"]
[WhiteElo "2953"]
[BlackElo "2495"]
[TimeControl "180+2"]
[EndTime "13:35:19 PDT"]
[Termination "Msb2 won by resignation"]

1. d4 {[%clk 0:03:01.9]} 1... Nf6 {[%clk 0:02:57.4]} 2. c4 {[%clk 0:03:03.5]}
2... Nc6 {[%clk 0:02:57.8]} 3. Nf3 {[%clk 0:03:03.4]} 3... e6 {[%clk 0:02:58.8]}
4. g3 {[%clk 0:03:04.9]} 4... Bb4+ {[%clk 0:02:54.7]} 5. Nbd2 {[%clk 0:03:05.4]}
5... d6 {[%clk 0:02:54.8]} 6. Bg2 {[%clk 0:03:06]} 6... O-O {[%clk 0:02:55.7]}
7. O-O {[%clk 0:03:07.2]} 7... Bxd2 {[%clk 0:02:56.8]} 8. Bxd2 {[%clk
0:03:03.8]} 8... a5 {[%clk 0:02:57.7]} 9. Qc2 {[%clk 0:03:00.3]} 9... Qe7 {[%clk
0:02:52.7]} 10. e4 {[%clk 0:03:00.8]} 10... e5 {[%clk 0:02:48.3]} 11. Bc3 {[%clk
0:03:02.1]} 11... Bg4 {[%clk 0:02:24.3]} 12. d5 {[%clk 0:03:03.2]} 12... Nb4
{[%clk 0:02:06.3]} 13. Qe2 {[%clk 0:03:02.5]} 13... c6 {[%clk 0:02:01.6]} 14. h3
{[%clk 0:03:03.4]} 14... Bd7 {[%clk 0:01:58.5]} 15. a3 {[%clk 0:02:57.8]} 15...
Na6 {[%clk 0:01:58.8]} 16. Rac1 {[%clk 0:02:59.5]} 16... Nc5 {[%clk 0:01:56.8]}
17. Nd2 {[%clk 0:03:00.9]} 17... a4 {[%clk 0:01:55.8]} 18. f4 {[%clk 0:02:58.8]}
18... cxd5 {[%clk 0:01:45.4]} 19. exd5 {[%clk 0:02:50.4]} 19... e4 {[%clk
0:01:46.2]} 20. g4 {[%clk 0:02:47.8]} 20... g6 {[%clk 0:00:54]} 21. Rce1 {[%clk
0:02:47]} 21... Rfe8 {[%clk 0:00:53]} 22. Qe3 {[%clk 0:02:48]} 22... b5 {[%clk
0:00:48.7]} 23. f5 {[%clk 0:02:49.5]} 23... Rf8 {[%clk 0:00:39.8]} 24. Qg5
{[%clk 0:02:40.9]} 24... Nxd5 {[%clk 0:00:38.7]} 25. f6 {[%clk 0:02:42.4]} 1-0

[Event "*** Titled Tuesday Blitz"]
[Site "Chess.com"]
[Date "2019.05.07"]
[Round "3"]
[White "jmduque"]
[Black "gemarin"]
[Result "0-1"]
[WhiteElo "2134"]
[BlackElo "2086"]
[TimeControl "180+2"]
[EndTime "13:35:37 PDT"]
[Termination "gemarin won by resignation"]

1. e4 {[%clk 0:03:01.9]} 1... c5 {[%clk 0:03:00.3]} 2. Nf3 {[%clk 0:03:02.9]}
2... Nc6 {[%clk 0:02:57.8]} 3. d4 {[%clk 0:03:04.1]} 3... cxd4 {[%clk
0:02:59.3]} 4. Nxd4 {[%clk 0:03:06]} 4... Nf6 {[%clk 0:03:00.2]} 5. Nc3 {[%clk
0:03:06.8]} 5... d6 {[%clk 0:03:01.3]} 6. Bg5 {[%clk 0:03:07.2]} 6... e6 {[%clk
0:03:01.2]} 7. Qd2 {[%clk 0:03:08.4]} 7... a6 {[%clk 0:03:02.4]} 8. O-O-O {[%clk
0:03:09.4]} 8... h6 {[%clk 0:03:03.5]} 9. Nxc6 {[%clk 0:03:10.6]} 9... bxc6
{[%clk 0:03:01.9]} 10. Bf4 {[%clk 0:03:12.5]} 10... d5 {[%clk 0:02:59.4]} 11.
Qe3 {[%clk 0:03:13]} 11... Be7 {[%clk 0:02:52.5]} 12. Be2 {[%clk 0:03:00.5]}
12... O-O {[%clk 0:02:42.9]} 13. h4 {[%clk 0:03:01.3]} 13... Qa5 {[%clk
0:02:40.1]} 14. e5 {[%clk 0:02:58.1]} 14... Nh7 {[%clk 0:02:26.9]} 15. Rh3
{[%clk 0:02:57.8]} 15... Kh8 {[%clk 0:02:26.5]} 16. Bd3 {[%clk 0:02:53.4]} 16...
f5 {[%clk 0:02:26.9]} 17. exf6 {[%clk 0:02:53.8]} 17... Bxf6 {[%clk 0:02:27.1]}
18. Be5 {[%clk 0:02:36.7]} 18... d4 {[%clk 0:02:23]} 19. Bxd4 {[%clk 0:02:33.3]}
19... Bxd4 {[%clk 0:02:15.2]} 20. Qxd4 {[%clk 0:02:34.3]} 20... e5 {[%clk
0:02:15.8]} 21. Qe4 {[%clk 0:02:33.4]} 21... Bf5 {[%clk 0:02:16]} 22. Qxc6
{[%clk 0:02:34.2]} 22... Bxh3 {[%clk 0:02:14.8]} 23. gxh3 {[%clk 0:02:34.4]}
23... Rfc8 {[%clk 0:02:08.2]} 24. Qg6 {[%clk 0:02:33.2]} 24... Nf8 {[%clk
0:02:04.8]} 25. Qf7 {[%clk 0:02:26.6]} 25... Rxc3 {[%clk 0:01:57.1]} 26. bxc3
{[%clk 0:02:24]} 26... Qxc3 {[%clk 0:01:58.1]} 27. Qb3 {[%clk 0:02:14.8]} 27...
Qd4 {[%clk 0:01:52.5]} 28. Rg1 {[%clk 0:01:58.2]} 28... Qf4+ {[%clk 0:01:51.5]}
29. Kb1 {[%clk 0:01:57.9]} 29... e4 {[%clk 0:01:49.5]} 30. Qb7 {[%clk
0:01:56.5]} 30... Rb8 {[%clk 0:01:49.8]} 31. Bxa6 {[%clk 0:01:41.8]} 31... Rxb7+
{[%clk 0:01:48.7]} 32. Bxb7 {[%clk 0:01:43.2]} 32... Qb8 {[%clk 0:01:49.3]} 0-1